[Event "Titled Tuesday Blitz January 03 Late 2023"]
[White "Deac, Bogdan-Daniel"]
[Black "Cruz Gomez, Miguel Angel"]
[WhiteFideId "1226380"]
[BlackFideId "5137160"]
[WhiteElo "2700"]
[BlackElo "1950"]
[Result "1-0"]
[Round "02"]
[TimeControl "180+2"]
[Date "2023.01.03"]
[WhiteClock "0:02:37"]
[BlackClock "0:01:00"]

1. b3 {[%clk 0:02:57]}  d5 {[%clk 0:02:57]} 2. Bb2 {[%clk 0:02:58]}  Bf5 {[%clk 0:02:57]} 3. e3 {[%clk 0:02:58]}  e6 {[%clk 0:02:57]} 4. c4 {[%clk 0:02:59]}  c6 {[%clk 0:02:57]} 5. Nf3 {[%clk 0:02:58]}  Nf6 {[%clk 0:02:56]} 6. Be2 {[%clk 0:02:58]}  Nbd7 {[%clk 0:02:56]} 7. Nh4 {[%clk 0:02:58]}  Bxb1 {[%clk 0:02:50]} 8. Rxb1 {[%clk 0:02:58]}  Ne4 {[%clk 0:02:50]} 9. Nf3 {[%clk 0:02:57]}  Be7 {[%clk 0:02:39]} 10. O-O {[%clk 0:02:53]}  Bf6 {[%clk 0:02:39]} 11. d4 {[%clk 0:02:51]}  O-O {[%clk 0:02:37]} 12. Bd3 {[%clk 0:02:51]}  g6 {[%clk 0:02:31]} 13. Qc2 {[%clk 0:02:51]}  Nd6 {[%clk 0:02:31]} 14. c5 {[%clk 0:02:51]}  Ne8 {[%clk 0:02:29]} 15. b4 {[%clk 0:02:50]}  Bg7 {[%clk 0:02:30]} 16. a4 {[%clk 0:02:50]}  f5 {[%clk 0:02:26]} 17. b5 {[%clk 0:02:50]}  g5 {[%clk 0:02:18]} 18. bxc6 {[%clk 0:02:49]}  bxc6 {[%clk 0:02:19]} 19. Bc3 {[%clk 0:02:49]}  g4 {[%clk 0:02:17]} 20. Nd2 {[%clk 0:02:49]}  Ndf6 {[%clk 0:01:32]} 21. Rb7 {[%clk 0:02:48]}  Rf7 {[%clk 0:01:32]} 22. Rfb1 {[%clk 0:02:45]}  Rxb7 {[%clk 0:01:30]} 23. Rxb7 {[%clk 0:02:45]}  Qc8 {[%clk 0:01:29]} 24. Qb1 {[%clk 0:02:41]}  Bh6 {[%clk 0:01:20]} 25. g3 {[%clk 0:02:38]}  Bf8 {[%clk 0:01:17]} 26. Ba5 {[%clk 0:02:38]}  h6 {[%clk 0:01:15]} 27. Ba6 {[%clk 0:02:37]}  Nh7 {[%clk 0:01:02]} 28. Rg7+ {[%clk 0:02:36]}  Nxg7 {[%clk 0:01:01]} 29. Bxc8 {[%clk 0:02:36]}  Rxc8 {[%clk 0:01:00]} 30. Qb7 {[%clk 0:02:37]}  Re8 {[%clk 0:01:00]} 31. Qxc6 {[%clk 0:02:37]} 1-0


[Site "https://www.chess.com"]

[Event "Titled Tuesday Blitz January 03 Late 2023"]
[White "Li, Ruifeng"]
[Black "Suvorov, Luca"]
[WhiteFideId "2061074"]
[BlackFideId "12977071"]
[WhiteElo "2541"]
[BlackElo "2310"]
[Result "1/2-1/2"]
[Round "02"]
[TimeControl "180+2"]
[Date "2023.01.03"]
[WhiteClock "0:00:50"]
[BlackClock "0:00:23"]

1. g4 {[%clk 0:03:00]}  d5 {[%clk 0:02:54]} 2. Bg2 {[%clk 0:03:00]}  c6 {[%clk 0:02:55]} 3. e3 {[%clk 0:02:59]}  h5 {[%clk 0:02:52]} 4. g5 {[%clk 0:02:56]}  h4 {[%clk 0:02:52]} 5. h3 {[%clk 0:02:55]}  e5 {[%clk 0:02:51]} 6. f4 {[%clk 0:02:48]}  Bd6 {[%clk 0:02:51]} 7. d3 {[%clk 0:02:45]}  exf4 {[%clk 0:02:48]} 8. exf4 {[%clk 0:02:46]}  Ne7 {[%clk 0:02:48]} 9. Nf3 {[%clk 0:02:43]}  Nf5 {[%clk 0:02:48]} 10. O-O {[%clk 0:02:34]}  Be6 {[%clk 0:02:25]} 11. Nc3 {[%clk 0:02:32]}  Nd7 {[%clk 0:02:24]} 12. Ne2 {[%clk 0:02:15]}  Qc7 {[%clk 0:02:22]} 13. Nfd4 {[%clk 0:02:13]}  O-O-O {[%clk 0:01:45]} 14. Nxf5 {[%clk 0:02:13]}  Bxf5 {[%clk 0:01:44]} 15. Nd4 {[%clk 0:02:14]}  g6 {[%clk 0:01:40]} 16. Qf3 {[%clk 0:02:06]}  Rde8 {[%clk 0:01:38]} 17. Be3 {[%clk 0:02:05]}  Bc5 {[%clk 0:01:27]} 18. Rae1 {[%clk 0:01:49]}  Qb6 {[%clk 0:01:17]} 19. Nxf5 {[%clk 0:01:42]}  gxf5 {[%clk 0:01:18]} 20. Bxc5 {[%clk 0:01:40]}  Qxc5+ {[%clk 0:01:11]} 21. Qf2 {[%clk 0:01:41]}  Qxf2+ {[%clk 0:01:06]} 22. Kxf2 {[%clk 0:01:42]}  Nc5 {[%clk 0:01:06]} 23. Re3 {[%clk 0:01:29]}  Rxe3 {[%clk 0:01:04]} 24. Kxe3 {[%clk 0:01:30]}  Re8+ {[%clk 0:01:04]} 25. Kd2 {[%clk 0:01:30]}  Ne6 {[%clk 0:01:03]} 26. c3 {[%clk 0:01:29]}  Kd7 {[%clk 0:01:03]} 27. Rf2 {[%clk 0:01:25]}  f6 {[%clk 0:00:57]} 28. gxf6 {[%clk 0:01:24]}  Rf8 {[%clk 0:00:57]} 29. Ke3 {[%clk 0:01:11]}  Rxf6 {[%clk 0:00:58]} 30. Bf3 {[%clk 0:01:11]}  Rg6 {[%clk 0:00:20]} 31. Rg2 {[%clk 0:01:11]}  Rxg2 {[%clk 0:00:21]} 32. Bxg2 {[%clk 0:01:12]}  Kd6 {[%clk 0:00:21]} 33. Bf3 {[%clk 0:01:12]}  a5 {[%clk 0:00:20]} 34. Bh5 {[%clk 0:01:10]}  Ke7 {[%clk 0:00:21]} 35. a3 {[%clk 0:01:06]}  b6 {[%clk 0:00:20]} 36. b4 {[%clk 0:01:06]}  axb4 {[%clk 0:00:20]} 37. cxb4 {[%clk 0:01:07]}  c5 {[%clk 0:00:21]} 38. bxc5 {[%clk 0:01:06]}  d4+ {[%clk 0:00:21]} 39. Kf3 {[%clk 0:01:05]}  Nxc5 {[%clk 0:00:22]} 40. Ke2 {[%clk 0:01:05]}  Ne6 {[%clk 0:00:22]} 41. Kf3 {[%clk 0:01:01]}  Nc5 {[%clk 0:00:22]} 42. Ke2 {[%clk 0:00:50]}  Ne6 {[%clk 0:00:22]} 43. Kf3 {[%clk 0:00:50]}  Nc5 {[%clk 0:00:23]} 1/2-1/2


[Site "https://www.chess.com"]

[Event "Titled Tuesday Blitz January 03 Late 2023"]
[White "Svane, Frederik"]
[Black "Vovk, Orest"]
[WhiteFideId "12923044"]
[BlackFideId "14113490"]
[WhiteElo "2600"]
[BlackElo "2315"]
[Result "1-0"]
[Round "02"]
[TimeControl "180+2"]
[Date "2023.01.03"]
[WhiteClock "0:00:29"]
[BlackClock "0:00:11"]

1. a3 {[%clk 0:03:00]}  g5 {[%clk 0:02:54]} 2. d4 {[%clk 0:02:58]}  g4 {[%clk 0:02:53]} 3. c4 {[%clk 0:02:57]}  Nf6 {[%clk 0:02:52]} 4. Nc3 {[%clk 0:02:58]}  Rg8 {[%clk 0:02:52]} 5. e4 {[%clk 0:02:58]}  d6 {[%clk 0:02:52]} 6. Be3 {[%clk 0:02:57]}  Nc6 {[%clk 0:02:52]} 7. b4 {[%clk 0:02:50]}  e5 {[%clk 0:02:48]} 8. d5 {[%clk 0:02:51]}  Nd4 {[%clk 0:02:40]} 9. Nge2 {[%clk 0:02:34]}  Nxe2 {[%clk 0:02:37]} 10. Bxe2 {[%clk 0:02:34]}  a5 {[%clk 0:02:26]} 11. O-O {[%clk 0:02:30]}  axb4 {[%clk 0:02:22]} 12. axb4 {[%clk 0:02:31]}  Rxa1 {[%clk 0:02:23]} 13. Qxa1 {[%clk 0:02:32]}  Nh5 {[%clk 0:02:23]} 14. c5 {[%clk 0:02:24]}  Nf4 {[%clk 0:02:20]} 15. Bb5+ {[%clk 0:02:22]}  Ke7 {[%clk 0:02:03]} 16. Bxf4 {[%clk 0:01:53]}  exf4 {[%clk 0:02:02]} 17. e5 {[%clk 0:01:54]}  dxe5 {[%clk 0:01:53]} 18. d6+ {[%clk 0:01:54]}  cxd6 {[%clk 0:01:42]} 19. Nd5+ {[%clk 0:01:53]}  Ke6 {[%clk 0:01:40]} 20. Qa2 {[%clk 0:01:50]}  Kf5 {[%clk 0:01:35]} 21. Nxf4 {[%clk 0:01:27]}  Be6 {[%clk 0:01:08]} 22. Nxe6 {[%clk 0:01:10]}  fxe6 {[%clk 0:01:08]} 23. f4 {[%clk 0:01:11]}  e4 {[%clk 0:00:59]} 24. Bc4 {[%clk 0:00:47]}  d5 {[%clk 0:00:55]} 25. Rd1 {[%clk 0:00:47]}  Qe7 {[%clk 0:00:15]} 26. Bxd5 {[%clk 0:00:44]}  exd5 {[%clk 0:00:13]} 27. Qxd5+ {[%clk 0:00:40]}  Kxf4 {[%clk 0:00:14]} 28. g3+ {[%clk 0:00:27]}  Kf3 {[%clk 0:00:11]} 29. Qf5+ {[%clk 0:00:28]}  Ke2 {[%clk 0:00:11]} 30. Qf1+ {[%clk 0:00:28]}  Ke3 {[%clk 0:00:11]} 31. Qf2# {[%clk 0:00:29]} 1-0


[Site "https://www.chess.com"]

[Event "Titled Tuesday Blitz January 03 Late 2023"]
[White "Tanenbaum, Zachary"]
[Black "Urbina Perez, Juan Antonio"]
[WhiteFideId "2060850"]
[BlackFideId "2217368"]
[WhiteElo "2261"]
[BlackElo "2266"]
[Result "1-0"]
[Round "02"]
[TimeControl "180+2"]
[Date "2023.01.03"]
[WhiteClock "0:00:27"]
[BlackClock "0:01:35"]

1. e4 {[%clk 0:03:00]}  c5 {[%clk 0:02:56]} 2. Nf3 {[%clk 0:02:59]}  e6 {[%clk 0:02:56]} 3. d4 {[%clk 0:03:00]}  cxd4 {[%clk 0:02:56]} 4. Nxd4 {[%clk 0:03:01]}  Bc5 {[%clk 0:02:55]} 5. Nc3 {[%clk 0:02:45]}  Qb6 {[%clk 0:02:49]} 6. Be3 {[%clk 0:02:04]}  Nc6 {[%clk 0:02:44]} 7. Na4 {[%clk 0:01:38]}  Qa5+ {[%clk 0:02:43]} 8. c3 {[%clk 0:01:39]}  Bxd4 {[%clk 0:02:38]} 9. Bxd4 {[%clk 0:01:40]}  Nxd4 {[%clk 0:02:38]} 10. Qxd4 {[%clk 0:01:41]}  e5 {[%clk 0:02:38]} 11. Qc4 {[%clk 0:01:24]}  Ne7 {[%clk 0:02:19]} 12. Nc5 {[%clk 0:01:20]}  O-O {[%clk 0:02:14]} 13. Nb3 {[%clk 0:01:15]}  Qb6 {[%clk 0:02:12]} 14. Qc5 {[%clk 0:00:59]}  Qxc5 {[%clk 0:02:07]} 15. Nxc5 {[%clk 0:01:00]}  d6 {[%clk 0:02:07]} 16. Nb3 {[%clk 0:00:57]}  Be6 {[%clk 0:02:08]} 17. O-O-O {[%clk 0:00:56]}  Rac8 {[%clk 0:02:04]} 18. Rxd6 {[%clk 0:00:55]}  b6 {[%clk 0:01:57]} 19. Ba6 {[%clk 0:00:53]}  Rc7 {[%clk 0:01:56]} 20. Rhd1 {[%clk 0:00:53]}  g6 {[%clk 0:01:56]} 21. Rd8 {[%clk 0:00:52]}  Nc6 {[%clk 0:01:55]} 22. Rxf8+ {[%clk 0:00:51]}  Kxf8 {[%clk 0:01:56]} 23. Bb5 {[%clk 0:00:49]}  Bxb3 {[%clk 0:01:49]} 24. axb3 {[%clk 0:00:49]}  Na5 {[%clk 0:01:49]} 25. Kc2 {[%clk 0:00:48]}  Nb7 {[%clk 0:01:49]} 26. Rd5 {[%clk 0:00:46]}  Re7 {[%clk 0:01:39]} 27. b4 {[%clk 0:00:47]}  Kg7 {[%clk 0:01:37]} 28. Bc6 {[%clk 0:00:44]}  Kf6 {[%clk 0:01:35]} 29. c4 {[%clk 0:00:41]}  Rc7 {[%clk 0:01:34]} 30. Bxb7 {[%clk 0:00:39]}  Rxb7 {[%clk 0:01:35]} 31. c5 {[%clk 0:00:40]}  Rc7 {[%clk 0:01:35]} 32. Kc3 {[%clk 0:00:39]}  Ke6 {[%clk 0:01:32]} 33. Rd6+ {[%clk 0:00:38]}  Ke7 {[%clk 0:01:32]} 34. Kc4 {[%clk 0:00:39]}  f5 {[%clk 0:01:31]} 35. exf5 {[%clk 0:00:35]}  gxf5 {[%clk 0:01:31]} 36. Kd5 {[%clk 0:00:35]}  bxc5 {[%clk 0:01:32]} 37. bxc5 {[%clk 0:00:36]}  e4 {[%clk 0:01:32]} 38. c6 {[%clk 0:00:31]}  a5 {[%clk 0:01:30]} 39. Rd7+ {[%clk 0:00:24]}  Rxd7+ {[%clk 0:01:29]} 40. cxd7 {[%clk 0:00:24]}  Kxd7 {[%clk 0:01:28]} 41. Ke5 {[%clk 0:00:24]}  Kc6 {[%clk 0:01:29]} 42. Kxf5 {[%clk 0:00:25]}  Kb5 {[%clk 0:01:30]} 43. Kxe4 {[%clk 0:00:25]}  Kb4 {[%clk 0:01:31]} 44. f4 {[%clk 0:00:25]}  Kb3 {[%clk 0:01:32]} 45. f5 {[%clk 0:00:26]}  Kxb2 {[%clk 0:01:33]} 46. f6 {[%clk 0:00:26]}  a4 {[%clk 0:01:34]} 47. f7 {[%clk 0:00:27]}  a3 {[%clk 0:01:35]} 48. f8=Q {[%clk 0:00:27]}  a2 {[%clk 0:01:36]} 49. Qb4+ {[%clk 0:00:27]}  Ka1 {[%clk 0:01:35]} 50. Qb3 {[%clk 0:00:26]}  h5 {[%clk 0:01:34]} 51. Qc2 {[%clk 0:00:27]}  h4 {[%clk 0:01:35]} 52. Qc1# {[%clk 0:00:27]} 1-0


[Site "https://www.chess.com"]

[Event "Titled Tuesday Blitz January 03 Late 2023"]
[White "Seletsky, Grigory"]
[Black "Amburgy, Ryan"]
[WhiteFideId "14112191"]
[BlackFideId "30924820"]
[WhiteElo "2259"]
[BlackElo "2246"]
[Result "1-0"]
[Round "02"]
[TimeControl "180+2"]
[Date "2023.01.03"]
[WhiteClock "0:01:51"]
[BlackClock "0:00:58"]

1. e4 {[%clk 0:03:00]}  c6 {[%clk 0:03:00]} 2. d4 {[%clk 0:02:59]}  d5 {[%clk 0:03:01]} 3. Nc3 {[%clk 0:02:59]}  dxe4 {[%clk 0:03:01]} 4. Nxe4 {[%clk 0:02:59]}  Nf6 {[%clk 0:03:02]} 5. Ng3 {[%clk 0:03:00]}  h5 {[%clk 0:03:01]} 6. h3 {[%clk 0:03:00]}  h4 {[%clk 0:02:59]} 7. N3e2 {[%clk 0:03:00]}  Bf5 {[%clk 0:02:58]} 8. Nf3 {[%clk 0:02:58]}  Ne4 {[%clk 0:02:40]} 9. c3 {[%clk 0:02:56]}  e6 {[%clk 0:02:39]} 10. Nf4 {[%clk 0:02:50]}  Be7 {[%clk 0:02:33]} 11. Bd3 {[%clk 0:02:47]}  Nd6 {[%clk 0:02:33]} 12. O-O {[%clk 0:02:42]}  Nd7 {[%clk 0:02:28]} 13. Re1 {[%clk 0:02:40]}  O-O {[%clk 0:02:24]} 14. Ne5 {[%clk 0:02:33]}  Nxe5 {[%clk 0:02:16]} 15. dxe5 {[%clk 0:02:26]}  Ne8 {[%clk 0:01:54]} 16. Bxf5 {[%clk 0:02:17]}  exf5 {[%clk 0:01:55]} 17. Qc2 {[%clk 0:02:01]}  g6 {[%clk 0:01:49]} 18. e6 {[%clk 0:02:01]}  Qc7 {[%clk 0:01:05]} 19. exf7+ {[%clk 0:01:58]}  Kxf7 {[%clk 0:01:05]} 20. Qb3+ {[%clk 0:01:57]}  Kf6 {[%clk 0:00:58]} 21. Qe6+ {[%clk 0:01:51]} 1-0


[Site "https://www.chess.com"]

[Event "Titled Tuesday Blitz January 03 Late 2023"]
[White "Zeynalli, Rashad"]
[Black "Urquhart, Ed"]
[WhiteFideId "13403320"]
[BlackFideId "2603748"]
[WhiteElo "2200"]
[BlackElo "2209"]
[Result "1-0"]
[Round "02"]
[TimeControl "180+2"]
[Date "2023.01.03"]
[WhiteClock "0:00:28"]
[BlackClock "0:00:14"]

1. d4 {[%clk 0:03:00]}  Nf6 {[%clk 0:02:59]} 2. Bf4 {[%clk 0:02:59]}  c5 {[%clk 0:02:57]} 3. d5 {[%clk 0:02:59]}  Qb6 {[%clk 0:02:57]} 4. Bc1 {[%clk 0:02:59]}  d6 {[%clk 0:02:54]} 5. Nc3 {[%clk 0:02:59]}  Bf5 {[%clk 0:02:53]} 6. f3 {[%clk 0:02:57]}  h6 {[%clk 0:02:46]} 7. e4 {[%clk 0:02:57]}  Bh7 {[%clk 0:02:46]} 8. Bc4 {[%clk 0:02:51]}  a6 {[%clk 0:02:45]} 9. a4 {[%clk 0:02:48]}  Nbd7 {[%clk 0:02:40]} 10. Nh3 {[%clk 0:02:45]}  Ne5 {[%clk 0:02:40]} 11. Be2 {[%clk 0:02:46]}  e6 {[%clk 0:02:37]} 12. O-O {[%clk 0:02:44]}  Be7 {[%clk 0:02:34]} 13. Nf4 {[%clk 0:02:40]}  exd5 {[%clk 0:02:32]} 14. Nfxd5 {[%clk 0:02:40]}  Nxd5 {[%clk 0:02:31]} 15. Nxd5 {[%clk 0:02:41]}  Qd8 {[%clk 0:02:31]} 16. f4 {[%clk 0:02:36]}  Nc6 {[%clk 0:02:29]} 17. f5 {[%clk 0:02:36]}  Bf6 {[%clk 0:02:25]} 18. Bf4 {[%clk 0:02:30]}  Be5 {[%clk 0:02:24]} 19. Bxe5 {[%clk 0:02:28]}  Nxe5 {[%clk 0:02:19]} 20. f6 {[%clk 0:02:28]}  g5 {[%clk 0:02:08]} 21. Bh5 {[%clk 0:02:11]}  Bxe4 {[%clk 0:02:02]} 22. a5 {[%clk 0:01:57]}  Bxd5 {[%clk 0:02:00]} 23. Qxd5 {[%clk 0:01:58]}  Qd7 {[%clk 0:01:59]} 24. Rae1 {[%clk 0:01:52]}  O-O-O {[%clk 0:01:59]} 25. h3 {[%clk 0:01:47]}  Rhe8 {[%clk 0:01:42]} 26. b4 {[%clk 0:01:32]}  Qc6 {[%clk 0:01:35]} 27. Bxf7 {[%clk 0:01:26]}  Rf8 {[%clk 0:01:20]} 28. Be6+ {[%clk 0:01:20]}  Kb8 {[%clk 0:01:17]} 29. bxc5 {[%clk 0:01:18]}  Qxd5 {[%clk 0:01:07]} 30. Bxd5 {[%clk 0:01:17]}  Nd7 {[%clk 0:01:02]} 31. Re6 {[%clk 0:00:51]}  Nxc5 {[%clk 0:01:00]} 32. Re7 {[%clk 0:00:49]}  Rd7 {[%clk 0:00:56]} 33. Rb1 {[%clk 0:00:41]}  Kc7 {[%clk 0:00:54]} 34. Rxd7+ {[%clk 0:00:37]}  Kxd7 {[%clk 0:00:50]} 35. f7 {[%clk 0:00:37]}  Kc7 {[%clk 0:00:40]} 36. h4 {[%clk 0:00:36]}  Kd7 {[%clk 0:00:39]} 37. hxg5 {[%clk 0:00:35]}  hxg5 {[%clk 0:00:39]} 38. Kf2 {[%clk 0:00:36]}  Ke7 {[%clk 0:00:37]} 39. Kg3 {[%clk 0:00:35]}  Kf6 {[%clk 0:00:37]} 40. Rb6 {[%clk 0:00:33]}  Ke7 {[%clk 0:00:34]} 41. Kg4 {[%clk 0:00:33]}  Kd7 {[%clk 0:00:17]} 42. Kxg5 {[%clk 0:00:31]}  Kc7 {[%clk 0:00:17]} 43. Rb1 {[%clk 0:00:31]}  Kd7 {[%clk 0:00:15]} 44. Kg6 {[%clk 0:00:30]}  Ke7 {[%clk 0:00:15]} 45. Kg7 {[%clk 0:00:30]}  Nd7 {[%clk 0:00:15]} 46. Rxb7 {[%clk 0:00:28]}  Rc8 {[%clk 0:00:14]} 47. Rxd7+ {[%clk 0:00:26]}  Kxd7 {[%clk 0:00:14]} 48. f8=Q {[%clk 0:00:27]}  Rxf8 {[%clk 0:00:14]} 49. Kxf8 {[%clk 0:00:28]} 1-0


[Site "https://www.chess.com"]

[Event "Titled Tuesday Blitz January 03 Late 2023"]
[White "Kalajzic, Ivan"]
[Black "Msellek, Ilyass"]
[WhiteFideId "14506378"]
[BlackFideId "675938"]
[WhiteElo "2062"]
[BlackElo "2420"]
[Result "0-1"]
[Round "02"]
[TimeControl "180+2"]
[Date "2023.01.03"]
[WhiteClock "0:00:56"]
[BlackClock "0:01:10"]

1. b3 {[%clk 0:03:00]}  a5 {[%clk 0:02:55]} 2. a3 {[%clk 0:03:00]}  Nf6 {[%clk 0:02:53]} 3. Bb2 {[%clk 0:03:01]}  e6 {[%clk 0:02:54]} 4. e3 {[%clk 0:03:01]}  c5 {[%clk 0:02:55]} 5. Nf3 {[%clk 0:03:01]}  a4 {[%clk 0:02:55]} 6. d4 {[%clk 0:02:57]}  axb3 {[%clk 0:02:53]} 7. cxb3 {[%clk 0:02:58]}  b6 {[%clk 0:02:53]} 8. Be2 {[%clk 0:02:50]}  Bb7 {[%clk 0:02:40]} 9. O-O {[%clk 0:02:50]}  Be7 {[%clk 0:02:39]} 10. Nc3 {[%clk 0:02:50]}  O-O {[%clk 0:02:38]} 11. Nb5 {[%clk 0:02:49]}  Nc6 {[%clk 0:02:29]} 12. dxc5 {[%clk 0:02:48]}  bxc5 {[%clk 0:02:25]} 13. Nd6 {[%clk 0:02:46]}  Ba6 {[%clk 0:02:25]} 14. Bxa6 {[%clk 0:02:43]}  Rxa6 {[%clk 0:02:25]} 15. Ne5 {[%clk 0:02:39]}  Nd5 {[%clk 0:02:22]} 16. Nxc6 {[%clk 0:02:33]}  Rxc6 {[%clk 0:02:15]} 17. Nc4 {[%clk 0:02:33]}  Bf6 {[%clk 0:02:12]} 18. Qc2 {[%clk 0:02:28]}  h5 {[%clk 0:02:06]} 19. Rfd1 {[%clk 0:02:26]}  h4 {[%clk 0:02:00]} 20. h3 {[%clk 0:02:25]}  Qe7 {[%clk 0:02:00]} 21. Rd2 {[%clk 0:02:15]}  Bxb2 {[%clk 0:01:54]} 22. Qxb2 {[%clk 0:02:14]}  Qg5 {[%clk 0:01:53]} 23. Qe5 {[%clk 0:02:00]}  Qg6 {[%clk 0:01:53]} 24. Rad1 {[%clk 0:01:53]}  f5 {[%clk 0:01:38]} 25. Qb2 {[%clk 0:01:41]}  d6 {[%clk 0:01:34]} 26. a4 {[%clk 0:01:19]}  f4 {[%clk 0:01:34]} 27. Qc2 {[%clk 0:01:04]}  Rf5 {[%clk 0:01:28]} 28. Rxd5 {[%clk 0:00:56]}  exd5 {[%clk 0:01:12]} 29. Rxd5 {[%clk 0:00:56]}  f3 {[%clk 0:01:11]} 30. Qxf5 {[%clk 0:00:56]}  Qxg2# {[%clk 0:01:10]} 0-1


[Site "https://www.chess.com"]

[Event "Titled Tuesday Blitz January 03 Late 2023"]
[White "Krsnik Cohar, Ivan Vihor"]
[Black "Silva, Kaua Marques"]
[WhiteFideId "14520044"]
[BlackFideId "22701168"]
[WhiteElo "2336"]
[BlackElo "2169"]
[Result "1-0"]
[Round "02"]
[TimeControl "180+2"]
[Date "2023.01.03"]
[WhiteClock "0:00:28"]
[BlackClock "0:00:19"]

1. e4 {[%clk 0:03:00]}  c6 {[%clk 0:02:54]} 2. Nf3 {[%clk 0:03:00]}  d6 {[%clk 0:02:54]} 3. d4 {[%clk 0:03:00]}  Nf6 {[%clk 0:02:50]} 4. Bd3 {[%clk 0:02:56]}  Qc7 {[%clk 0:02:45]} 5. e5 {[%clk 0:02:49]}  Nd5 {[%clk 0:02:41]} 6. c4 {[%clk 0:02:47]}  Nb6 {[%clk 0:02:35]} 7. O-O {[%clk 0:02:45]}  g6 {[%clk 0:02:34]} 8. exd6 {[%clk 0:02:42]}  exd6 {[%clk 0:02:34]} 9. Re1+ {[%clk 0:02:40]}  Be6 {[%clk 0:02:19]} 10. d5 {[%clk 0:02:14]}  cxd5 {[%clk 0:02:18]} 11. cxd5 {[%clk 0:02:15]}  Nxd5 {[%clk 0:02:18]} 12. Bb5+ {[%clk 0:02:15]}  Kd8 {[%clk 0:02:17]} 13. Qd4 {[%clk 0:01:56]}  Rg8 {[%clk 0:02:11]} 14. Qxd5 {[%clk 0:01:57]}  a6 {[%clk 0:01:29]} 15. Ba4 {[%clk 0:01:55]}  Nc6 {[%clk 0:01:12]} 16. Bxc6 {[%clk 0:01:42]}  bxc6 {[%clk 0:01:11]} 17. Qd1 {[%clk 0:01:05]}  Be7 {[%clk 0:01:08]} 18. Nbd2 {[%clk 0:00:52]}  Kc8 {[%clk 0:00:54]} 19. Ne4 {[%clk 0:00:47]}  Bd5 {[%clk 0:00:48]} 20. Nc3 {[%clk 0:00:46]}  Be6 {[%clk 0:00:45]} 21. Ng5 {[%clk 0:00:43]}  Bxg5 {[%clk 0:00:41]} 22. Bxg5 {[%clk 0:00:43]}  h6 {[%clk 0:00:39]} 23. Bf4 {[%clk 0:00:41]}  g5 {[%clk 0:00:39]} 24. Bxd6 {[%clk 0:00:40]}  Qb6 {[%clk 0:00:38]} 25. Qa4 {[%clk 0:00:33]}  Rd8 {[%clk 0:00:37]} 26. Bg3 {[%clk 0:00:32]}  Ra7 {[%clk 0:00:35]} 27. Rac1 {[%clk 0:00:30]}  Rad7 {[%clk 0:00:29]} 28. Ne4 {[%clk 0:00:29]}  Bd5 {[%clk 0:00:25]} 29. Nf6 {[%clk 0:00:29]}  Rb7 {[%clk 0:00:18]} 30. Nxd5 {[%clk 0:00:28]}  Rxd5 {[%clk 0:00:19]} 31. Rxc6+ {[%clk 0:00:28]} 1-0


[Site "https://www.chess.com"]

[Event "Titled Tuesday Blitz January 03 Late 2023"]
[White "Xie, Bryan"]
[Black "Sargsyan, Anna M."]
[WhiteFideId "30941296"]
[BlackFideId "13308130"]
[WhiteElo "2361"]
[BlackElo "2375"]
[Result "0-1"]
[Round "02"]
[TimeControl "180+2"]
[Date "2023.01.03"]
[WhiteClock "0:00:59"]
[BlackClock "0:01:10"]

1. e4 {[%clk 0:03:00]}  c6 {[%clk 0:02:55]} 2. d4 {[%clk 0:03:00]}  d5 {[%clk 0:02:55]} 3. Nc3 {[%clk 0:03:00]}  dxe4 {[%clk 0:02:54]} 4. Nxe4 {[%clk 0:02:59]}  Nd7 {[%clk 0:02:54]} 5. Nf3 {[%clk 0:02:56]}  Ngf6 {[%clk 0:02:53]} 6. Ng3 {[%clk 0:02:41]}  e6 {[%clk 0:02:53]} 7. Bd3 {[%clk 0:02:40]}  c5 {[%clk 0:02:53]} 8. Be3 {[%clk 0:02:36]}  cxd4 {[%clk 0:02:53]} 9. Bxd4 {[%clk 0:02:35]}  Bc5 {[%clk 0:02:51]} 10. Bc3 {[%clk 0:02:23]}  O-O {[%clk 0:02:48]} 11. O-O {[%clk 0:02:22]}  Qc7 {[%clk 0:02:47]} 12. Ng5 {[%clk 0:02:18]}  h6 {[%clk 0:02:44]} 13. N5e4 {[%clk 0:02:19]}  Be7 {[%clk 0:02:43]} 14. Nxf6+ {[%clk 0:02:15]}  Bxf6 {[%clk 0:02:42]} 15. Nh5 {[%clk 0:02:16]}  Bxc3 {[%clk 0:02:40]} 16. bxc3 {[%clk 0:02:14]}  Ne5 {[%clk 0:02:37]} 17. Qd2 {[%clk 0:02:03]}  Bd7 {[%clk 0:02:33]} 18. Qf4 {[%clk 0:02:03]}  Qxc3 {[%clk 0:02:25]} 19. Qg3 {[%clk 0:02:03]}  Nxd3 {[%clk 0:02:22]} 20. cxd3 {[%clk 0:02:01]}  g6 {[%clk 0:02:13]} 21. Nf4 {[%clk 0:01:59]}  Kh7 {[%clk 0:02:08]} 22. Rac1 {[%clk 0:01:58]}  Qf6 {[%clk 0:02:06]} 23. Rc7 {[%clk 0:01:57]}  Bc6 {[%clk 0:02:06]} 24. Re1 {[%clk 0:01:51]}  Rae8 {[%clk 0:01:49]} 25. Qe3 {[%clk 0:01:45]}  Re7 {[%clk 0:01:34]} 26. Rxe7 {[%clk 0:01:34]}  Qxe7 {[%clk 0:01:35]} 27. Qxa7 {[%clk 0:01:33]}  Qb4 {[%clk 0:01:30]} 28. Qe3 {[%clk 0:01:27]}  Ra8 {[%clk 0:01:30]} 29. h4 {[%clk 0:01:11]}  Rxa2 {[%clk 0:01:28]} 30. h5 {[%clk 0:01:11]}  g5 {[%clk 0:01:27]} 31. Nxe6 {[%clk 0:01:11]}  Qg4 {[%clk 0:01:15]} 32. Nf8+ {[%clk 0:00:59]}  Kg8 {[%clk 0:01:10]} 0-1


[Site "https://www.chess.com"]

[Event "Titled Tuesday Blitz January 03 Late 2023"]
[White "Pinheiro, Iung Alicio de O."]
[Black "Sai Han Thiha"]
[WhiteFideId "2104350"]
[BlackFideId "13012290"]
[WhiteElo "2306"]
[BlackElo "2070"]
[Result "1-0"]
[Round "02"]
[TimeControl "180+2"]
[Date "2023.01.03"]
[WhiteClock "0:00:22"]
[BlackClock "0:00:09"]

1. e4 {[%clk 0:03:00]}  c6 {[%clk 0:03:00]} 2. Nc3 {[%clk 0:02:59]}  d5 {[%clk 0:03:00]} 3. Nf3 {[%clk 0:03:00]}  dxe4 {[%clk 0:03:00]} 4. Nxe4 {[%clk 0:03:00]}  Nf6 {[%clk 0:03:01]} 5. Qe2 {[%clk 0:03:00]}  Nxe4 {[%clk 0:02:53]} 6. Qxe4 {[%clk 0:03:01]}  Nd7 {[%clk 0:02:54]} 7. Bc4 {[%clk 0:03:00]}  Nf6 {[%clk 0:02:55]} 8. Ne5 {[%clk 0:03:01]}  e6 {[%clk 0:02:56]} 9. Qe2 {[%clk 0:03:01]}  Be7 {[%clk 0:01:40]} 10. O-O {[%clk 0:02:12]}  O-O {[%clk 0:01:35]} 11. Rd1 {[%clk 0:02:02]}  Qc7 {[%clk 0:01:34]} 12. d4 {[%clk 0:02:01]}  b5 {[%clk 0:01:35]} 13. Bd3 {[%clk 0:02:00]}  Nd5 {[%clk 0:01:29]} 14. a4 {[%clk 0:01:53]}  b4 {[%clk 0:01:27]} 15. Qe4 {[%clk 0:01:27]}  f5 {[%clk 0:01:15]} 16. Qe2 {[%clk 0:01:25]}  c5 {[%clk 0:01:14]} 17. dxc5 {[%clk 0:01:10]}  Bxc5 {[%clk 0:01:12]} 18. Bd2 {[%clk 0:01:06]}  Bb7 {[%clk 0:01:10]} 19. Bc4 {[%clk 0:00:59]}  a5 {[%clk 0:01:05]} 20. Nf3 {[%clk 0:00:56]}  Rfe8 {[%clk 0:01:02]} 21. Rac1 {[%clk 0:00:53]}  Kh8 {[%clk 0:00:57]} 22. c3 {[%clk 0:00:52]}  bxc3 {[%clk 0:00:57]} 23. bxc3 {[%clk 0:00:49]}  e5 {[%clk 0:00:52]} 24. Ng5 {[%clk 0:00:40]}  h6 {[%clk 0:00:46]} 25. Rb1 {[%clk 0:00:36]}  Bc6 {[%clk 0:00:23]} 26. Qh5 {[%clk 0:00:31]}  Re7 {[%clk 0:00:20]} 27. Qg6 {[%clk 0:00:27]}  hxg5 {[%clk 0:00:20]} 28. Bxg5 {[%clk 0:00:27]}  Qd6 {[%clk 0:00:15]} 29. Qh5+ {[%clk 0:00:20]}  Kg8 {[%clk 0:00:14]} 30. Bxe7 {[%clk 0:00:21]}  Qxe7 {[%clk 0:00:13]} 31. Rxd5 {[%clk 0:00:21]}  Bxd5 {[%clk 0:00:13]} 32. Bxd5+ {[%clk 0:00:22]}  Kf8 {[%clk 0:00:09]} 33. Qh8# {[%clk 0:00:22]} 1-0


[Site "https://www.chess.com"]